fUSD/lending_fUSD_20251227
["ID","MTS","AMOUNT","RATE_DAILY","PERIOD"]
[399913498,1766862649184,-500.0,0.00035616,9]
[399913499,1766862649193,-500.0,0.00035616,9]
[399913500,1766862649202,-454.64961583,0.00035616,9]
[399913501,1766862649211,-500.0,0.00035616,9]
[399913502,1766862649219,-500.0,0.00035616,9]
[399913503,1766862649228,-500.0,0.00035616,9]
[399913504,1766862649237,-500.0,0.00035616,9]
[399913505,1766862649247,-500.0,0.00035616,9]
[399913506,1766862649256,-500.0,0.00035616,9]
[399913507,1766862649265,-500.0,0.00035616,9]
[399913508,1766862649274,-500.0,0.00035616,9]
[399913509,1766862649284,-634.61255946,0.00035616,9]
[399913510,1766862649294,-500.0,0.00035616,9]
[399913511,1766862649303,-500.0,0.00035616,9]
[399913512,1766862649313,-500.0,0.00035616,9]
[399913513,1766862649323,-500.0,0.00035616,9]
[399913514,1766862649332,-500.0,0.00035616,9]
[399913515,1766862649342,-500.0,0.00035616,9]
[399913516,1766862649351,-500.0,0.00035616,9]
[399913517,1766862649362,-500.0,0.00035616,9]
[399913518,1766862649379,-500.0,0.00035616,9]
[399913519,1766862649400,-500.0,0.00035616,9]
[399913520,1766862649411,-400.0,0.00035616,9]
[399913521,1766862649420,-500.0,0.00035616,9]
[399913522,1766862649429,-400.0,0.00035616,9]
[399913523,1766862649438,-391.39397235,0.00035616,9]
[399913524,1766862649448,-520.0,0.00035616,9]
[399913525,1766862649458,-500.0,0.00035616,9]
[399913526,1766862649468,-500.0,0.00035616,9]
[399913527,1766862649477,-500.0,0.00035616,9]
[399913528,1766862649486,-500.0,0.00035616,9]
[399913529,1766862649495,-500.0,0.00035616,9]
[399913530,1766862649505,-500.0,0.00035616,9]
[399913531,1766862649514,-500.0,0.00035616,9]
[399913532,1766862649523,-442.02327227,0.00035616,9]
[399913533,1766862649533,-504.78712685,0.00035616,9]
[399913534,1766862649542,-500.0,0.00035616,9]
[399913535,1766862649552,-534.29466832,0.00035616,9]
[399913536,1766862649561,-500.0,0.00035616,9]
[399913537,1766862649570,-500.0,0.00035616,9]
[399913538,1766862649580,-273.50360677,0.00035616,9]
[399913539,1766862649590,-500.0,0.00035616,9]
[399913540,1766862649599,-500.0,0.00035616,9]
[399913541,1766862649609,-500.0,0.00035616,9]
[399913542,1766862649618,-500.0,0.00035616,9]
[399913543,1766862649631,-500.0,0.00035616,9]
[399913544,1766862649640,-500.0,0.00035616,9]
[399913545,1766862649649,-500.0,0.00035616,9]
[399913546,1766862649659,-500.0,0.00035616,9]
[399913547,1766862649669,-400.0,0.00035616,9]
[399913548,1766862649678,-262.74785482,0.00035616,9]
[399913549,1766862649688,-196.02681601,0.00035616,9]
[399913550,1766862649698,-500.0,0.00035616,9]
[399913551,1766862649708,-500.0,0.00035616,9]
[399913552,1766862649717,-500.0,0.00035616,9]
[399913553,1766862649727,-500.0,0.00035616,9]
[399913554,1766862649737,-381.21678919,0.00035616,9]
[399913555,1766862649749,-500.0,0.00035616,9]
[399913556,1766862649759,-500.0,0.00035616,9]
[399913557,1766862649770,-500.0,0.00035616,9]
[399913558,1766862649781,-400.0,0.00035616,9]
[399913559,1766862649791,-500.0,0.00035616,9]
[399913560,1766862649800,-500.0,0.00035616,9]
[399913561,1766862649809,-500.0,0.00035616,9]
[399913562,1766862649819,-500.0,0.00035616,9]
[399913563,1766862649828,-553.14326247,0.00035616,9]
[399913564,1766862649838,-311.63616351,0.00035616,9]
[399913565,1766862649847,-181.71797118,0.00035616,9]
[399913566,1766862649856,-500.0,0.00035616,9]
[399913567,1766862649867,-500.0,0.00035616,9]
[399913568,1766862649876,-409.57465022,0.00035616,9]
[399913569,1766862649885,-500.0,0.00035616,9]
[399913570,1766862649895,-254.42047441,0.00035616,9]
[399913571,1766862649905,-500.0,0.00035616,9]
[399913572,1766862649914,-500.0,0.00035616,9]
[399913573,1766862649924,-206.58443437,0.00035616,9]
[399913574,1766862649934,-500.0,0.00035616,9]
[399913575,1766862649944,-500.0,0.00035616,9]
[399913576,1766862649956,-500.0,0.00035616,9]
[399913577,1766862649966,-325.002456,0.00035616,9]
[399913578,1766862649975,-500.0,0.00035616,9]
[399913579,1766862649987,-500.0,0.00035616,9]
[399913580,1766862649997,-500.0,0.00035616,9]
[399913581,1766862650008,-500.0,0.00035616,9]
[399913582,1766862650017,-500.0,0.00035616,9]
[399913583,1766862650027,-500.0,0.00035616,9]
[399913584,1766862650037,-500.0,0.00035616,9]
[399913585,1766862650047,-500.0,0.00035616,9]
[399913586,1766862650056,-500.0,0.00035616,9]
[399913587,1766862650066,-473.98,0.00035616,9]
[399913588,1766862650075,-500.0,0.00035616,9]
[399913589,1766862650085,-500.0,0.00035616,9]
[399913590,1766862650094,-500.0,0.00035616,9]
[399913591,1766862650104,-500.0,0.00035616,9]
[399913592,1766862650114,-500.0,0.00035616,9]
[399913593,1766862650125,-500.0,0.00035616,9]
[399913594,1766862650135,-408.2814605,0.00035616,9]
[399913595,1766862650144,-417.51616477,0.00035616,9]
[399913596,1766862650154,-457.18736746,0.00035616,9]
[399913597,1766862650163,-232.53112155,0.00035616,9]
[399913598,1766862650172,-641.752944,0.00035616,9]
[399913599,1766862650181,-500.0,0.00035616,9]
[399913600,1766862650191,-263.43785547,0.00035616,10]
[399913601,1766862650199,-500.0,0.00035616,7]
[399913602,1766862650209,-500.0,0.00035616,7]
[399913603,1766862650219,-500.0,0.00035616,7]
[399913604,1766862650228,-500.0,0.00035616,7]
[399913605,1766862650238,-500.0,0.00035616,7]
[399913606,1766862650247,-500.0,0.00035616,7]
[399913607,1766862650257,-500.0,0.00035616,7]
[399913608,1766862650266,-500.0,0.00035616,7]
[399913609,1766862650277,-500.0,0.00035616,7]
[399913610,1766862650286,-500.0,0.00035616,7]
[399913611,1766862650296,-500.0,0.00035616,7]
[399913612,1766862650305,-500.0,0.00035616,7]
[399913613,1766862650315,-500.0,0.00035616,7]
[399913614,1766862650325,-500.0,0.00035616,7]
[399913615,1766862650334,-500.0,0.00035616,7]
[399913616,1766862650343,-500.0,0.00035616,7]
[399913617,1766862650352,-500.0,0.00035616,7]
[399913618,1766862650361,-500.0,0.00035616,7]
[399913619,1766862650370,-500.0,0.00035616,7]
[399913620,1766862650379,-500.0,0.00035616,7]
[399913621,1766862650389,-500.0,0.00035616,7]
[399913622,1766862650399,-500.0,0.00035616,7]
[399913623,1766862650408,-500.0,0.00035616,7]
[399913624,1766862650418,-500.0,0.00035616,7]
[399913625,1766862650427,-500.0,0.00035616,7]
[399913626,1766862650436,-500.0,0.00035616,7]
[399913627,1766862650445,-500.0,0.00035616,7]
[399913628,1766862650454,-500.0,0.00035616,7]
[399913629,1766862650464,-500.0,0.00035616,7]
[399913630,1766862650473,-500.0,0.00035616,7]
[399913631,1766862650482,-500.0,0.00035616,7]
[399913632,1766862650492,-500.0,0.00035616,7]
[399913633,1766862650501,-500.0,0.00035616,7]
[399913634,1766862650510,-500.0,0.00035616,7]
[399913635,1766862650519,-500.0,0.00035616,7]
[399913636,1766862650528,-500.0,0.00035616,7]
[399913637,1766862650538,-500.0,0.00035616,7]
[399913638,1766862650547,-500.0,0.00035616,7]
[399913639,1766862650556,-500.0,0.00035616,7]
[399913640,1766862650565,-500.0,0.00035616,7]
[399913641,1766862650575,-500.0,0.00035616,7]
[399913642,1766862650584,-500.0,0.00035616,7]
[399913643,1766862650594,-181.62923908,0.00035616,7]
[399913644,1766862650603,-500.0,0.00035616,7]
[399913645,1766862650612,-2393.71447756,0.00035813,2]
[399913646,1766862650622,-1000.0,0.0003589,2]
[399913647,1766862650631,-500.0,0.0003589,9]
[399913648,1766862650639,-500.0,0.0003589,9]
[399913649,1766862650649,-300.0,0.0003589,9]
[399913650,1766862650659,-521.40998276,0.0003589,9]
[399913651,1766862650668,-300.0,0.0003589,9]
[399913652,1766862650677,-304.41311285,0.0003589,9]
[399913653,1766862650687,-500.0,0.0003589,9]
[399913654,1766862650697,-500.0,0.0003589,9]
[399913655,1766862650707,-313.28216647,0.0003589,9]
[399913656,1766862650716,-400.0,0.0003589,9]
[399913657,1766862650725,-313.57717241,0.0003589,9]
[399913658,1766862650734,-500.0,0.0003589,9]
[399913659,1766862650744,-500.0,0.0003589,9]
[399913660,1766862650755,-319.18904261,0.0003589,9]
[399913661,1766862650764,-200.0,0.0003589,9]
[399913662,1766862650774,-500.0,0.0003589,9]
[399913663,1766862650784,-400.0,0.0003589,9]
[399913664,1766862650793,-500.0,0.0003589,9]
[399913665,1766862650802,-314.44501584,0.0003589,9]
[399913666,1766862650811,-305.725046,0.0003589,9]
[399913667,1766862650821,-500.0,0.0003589,9]
[399913668,1766862650832,-258.75912416,0.0003589,9]
[399913669,1766862650842,-300.0,0.0003589,9]
[399913670,1766862650851,-316.60131033,0.0003589,9]
[399913671,1766862650861,-315.78470585,0.0003589,9]
[399913672,1766862650871,-151.0,0.0003589,31]
[399913673,1766862650881,-500.0,0.0003589,9]
[399913674,1766862650890,-500.0,0.0003589,9]
[399913675,1766862650900,-310.02142568,0.0003589,9]
[399913676,1766862650909,-500.0,0.0003589,9]
[399913677,1766862650918,-410.72287449,0.0003589,9]
[399913678,1766862650928,-309.71593805,0.0003589,9]
[399913679,1766862650937,-300.0,0.0003589,9]
[399913680,1766862650946,-500.0,0.0003589,9]
[399913681,1766862650958,-400.0,0.0003589,9]
[399913682,1766862650967,-500.0,0.0003589,9]
[399913683,1766862650977,-400.0,0.0003589,9]
[399913684,1766862650986,-605.41,0.0003589,9]
[399913685,1766862650997,-400.0,0.0003589,9]
[399913686,1766862651006,-400.0,0.0003589,9]
[399913687,1766862651015,-400.0,0.0003589,9]
[399913688,1766862651024,-501.81646368,0.0003589,9]
[399913689,1766862651034,-441.93,0.0003589,9]
[399913690,1766862651044,-288.45433716,0.0003589,9]
[399913691,1766862651054,-500.0,0.0003589,9]
[399913692,1766862651063,-400.0,0.0003589,9]
[399913693,1766862651073,-456.49117196,0.0003589,9]
[399913694,1766862651082,-500.0,0.0003589,9]
[399913695,1766862651091,-314.31237405,0.0003589,9]
[399913696,1766862651101,-500.0,0.0003589,9]
[399913697,1766862651111,-500.0,0.0003589,9]
[399913698,1766862651119,-385.89380776,0.0003589,9]
[399913699,1766862651129,-498.71682812,0.0003589,9]
[399913700,1766862651138,-500.0,0.0003589,9]
[399913701,1766862651147,-500.0,0.0003589,9]
[399913702,1766862651157,-500.0,0.0003589,9]
[399913703,1766862651167,-540.92160247,0.0003589,9]
[399913704,1766862651177,-629.59093029,0.0003589,9]
[399913705,1766862651186,-151.0,0.0003589,31]
[399913706,1766862651196,-581.16433801,0.0003589,9]
[399913707,1766862651206,-500.0,0.0003589,9]
[399913708,1766862651216,-300.0,0.0003589,9]
[399913709,1766862651225,-500.0,0.0003589,9]
[399913710,1766862651235,-312.5970833,0.0003589,9]
[399913711,1766862651244,-634.95044228,0.0003589,9]
[399913712,1766862651253,-312.00695733,0.0003589,9]
[399913713,1766862651263,-500.0,0.0003589,9]
[399913714,1766862651273,-500.0,0.0003589,9]
[399913715,1766862651283,-500.0,0.0003589,9]
[399913716,1766862651293,-300.0,0.0003589,9]
[399913717,1766862651303,-322.93424786,0.0003589,9]
[399913718,1766862651313,-500.0,0.0003589,9]
[399913719,1766862651322,-400.0,0.0003589,9]
[399913720,1766862651331,-500.0,0.0003589,9]
[399913721,1766862651341,-400.0,0.0003589,9]
[399913722,1766862651350,-591.67732518,0.0003589,9]
[399913723,1766862651360,-500.0,0.0003589,9]
[399913724,1766862651369,-152.8566431,0.0003589,9]
[399913725,1766862651379,-400.0,0.0003589,9]
[399913726,1766862651388,-500.0,0.0003589,9]
[399913727,1766862651398,-400.0,0.0003589,9]
[399913728,1766862651408,-449.219669,0.0003589,9]
[399913729,1766862651418,-500.0,0.0003589,9]
[399913730,1766862651427,-546.15,0.0003589,9]
[399913731,1766862651437,-427.09129843,0.0003589,9]
[399913732,1766862651446,-436.06625599,0.0003589,9]
[399913733,1766862651455,-500.0,0.0003589,9]
[399913734,1766862651465,-500.0,0.0003589,9]
[399913735,1766862651475,-500.0,0.0003589,9]
[399913736,1766862651486,-227.13,0.0003589,9]
[399913737,1766862651495,-500.0,0.0003589,9]
[399913738,1766862651505,-500.0,0.0003589,9]
[399913739,1766862651515,-400.0,0.0003589,9]
[399913740,1766862651524,-500.0,0.0003589,9]
[399913741,1766862651533,-300.0,0.0003589,9]
[399913742,1766862651543,-228.49619338,0.0003589,9]
[399913743,1766862651553,-400.0,0.0003589,9]
[399913744,1766862651562,-500.0,0.0003589,9]
[399913745,1766862651571,-500.0,0.0003589,9]
[399913746,1766862651581,-500.0,0.0003589,9]
[399913747,1766862651590,-500.0,0.0003589,9]
[399913748,1766862651599,-300.0,0.0003589,9]
[399913749,1766862651608,-500.0,0.0003589,9]
[399913750,1766862651618,-500.0,0.0003589,9]
[399913751,1766862651627,-462.45,0.0003589,9]
[399913752,1766862651636,-500.0,0.0003589,9]
[399913753,1766862651645,-442.76,0.0003589,9]
[399913754,1766862651655,-384.77,0.0003589,9]
[399913755,1766862651664,-151.0,0.0003589,31]
[399913756,1766862651674,-500.0,0.0003589,9]
[399913757,1766862651684,-206.88345513,0.0003589,9]
[399913758,1766862651693,-500.0,0.0003589,9]
[399913759,1766862651702,-217.18783256,0.0003589,9]
[399913760,1766862651712,-400.0,0.0003589,9]
[399913761,1766862651722,-500.0,0.0003589,9]
[399913762,1766862651731,-548.26401351,0.0003589,9]
[399913763,1766862651740,-457.20483335,0.0003589,9]
[399913764,1766862651750,-500.0,0.0003589,9]
[399913765,1766862651759,-342.88163227,0.0003589,9]
[399913766,1766862651769,-320.92998031,0.0003589,9]
[399913767,1766862651779,-289.69152321,0.0003589,9]
[399913768,1766862651788,-500.0,0.0003589,9]
[399913769,1766862651798,-302.2265887,0.0003589,9]
[399913770,1766862651808,-446.12,0.0003589,9]
[399913771,1766862651818,-200.0,0.0003589,9]
[399913772,1766862651828,-500.0,0.0003589,9]
[399913773,1766862651838,-500.0,0.0003589,9]
[399913774,1766862651848,-209.86192477,0.0003589,9]
[399913775,1766862651857,-500.0,0.0003589,9]
[399913776,1766862651867,-268.07008291,0.0003589,9]
[399913777,1766862651877,-500.0,0.0003589,9]
[399913778,1766862651887,-216.61182348,0.0003589,9]
[399913779,1766862651896,-500.0,0.0003589,9]
[399913780,1766862651906,-500.0,0.0003589,9]
[399913781,1766862651916,-300.0,0.0003589,5]
[399913782,1766862651926,-300.0,0.0003589,5]
[399913783,1766862651936,-300.0,0.0003589,5]
[399913784,1766862651946,-300.0,0.0003589,5]
[399913785,1766862651957,-300.0,0.0003589,5]
[399913786,1766862651967,-500.0,0.0003589,9]
[399913787,1766862651977,-500.0,0.0003589,9]
[399913788,1766862651988,-400.0,0.0003589,9]
[399913789,1766862652000,-800.0,0.0003589,13]
[399913790,1766862652010,-227.00709792,0.0003589,13]
[399913791,1766862652020,-500.0,0.0003589,9]
[399913792,1766862652030,-400.0,0.0003589,9]
[399913793,1766862652040,-500.0,0.0003589,9]
[399913794,1766862652050,-400.0,0.0003589,9]
[399913795,1766862652059,-400.0,0.0003589,9]
[399913796,1766862652069,-500.0,0.0003589,9]
[399913797,1766862652079,-336.60597227,0.0003589,9]
[399913798,1766862652089,-500.0,0.0003589,9]
[399913799,1766862652100,-400.0,0.0003589,9]
[399913800,1766862652110,-400.0,0.0003589,9]
[399913801,1766862652119,-500.0,0.0003589,9]
[399913802,1766862652129,-151.0,0.0003589,31]
[399913803,1766862652140,-234.950329,0.0003589,31]
[399913804,1766862652151,-500.0,0.0003589,9]
[399913805,1766862652160,-170.07,0.0003589,9]
[399913806,1766862652170,-204.53898205,0.0003589,9]
[399913807,1766862652180,-500.0,0.0003589,9]
[399913808,1766862652190,-296.91356726,0.0003589,9]
[399913809,1766862652200,-500.0,0.0003589,9]
[399913810,1766862652211,-400.0,0.0003589,9]
[399913811,1766862652223,-216.10563211,0.0003589,9]
[399913812,1766862652234,-545.77,0.0003589,9]
[399913813,1766862652244,-400.0,0.0003589,9]
[399913814,1766862652254,-500.0,0.0003589,9]
[399913815,1766862652264,-221.67735216,0.0003589,9]
[399913816,1766862652274,-300.0,0.0003589,9]
[399913817,1766862652284,-447.57001019,0.0003589,9]
[399913818,1766862652294,-400.0,0.0003589,9]
[399913819,1766862652304,-537.00373962,0.0003589,9]
[399913820,1766862652314,-400.0,0.0003589,9]
[399913821,1766862652324,-400.0,0.0003589,9]
[399913822,1766862652334,-400.0,0.0003589,9]
[399913823,1766862652344,-400.0,0.0003589,9]
[399913824,1766862652354,-500.0,0.0003589,9]
[399913825,1766862652364,-500.0,0.0003589,9]
[399913826,1766862652374,-151.0,0.0003589,31]
[399913827,1766862652384,-151.0,0.0003589,31]
[399913828,1766862652394,-211.60992865,0.0003589,9]
[399913829,1766862652404,-352.88337753,0.0003589,9]
[399913830,1766862652414,-151.0,0.0003589,31]
[399913831,1766862652423,-400.0,0.0003589,9]
[399913832,1766862652433,-151.0,0.0003589,7]
[399913833,1766862652443,-835.65,0.0003589,9]
[399913834,1766862652453,-151.0,0.0003589,7]
[399913835,1766862652463,-151.0,0.0003589,14]
[399913836,1766862652473,-151.0,0.0003589,7]
[399913837,1766862652483,-151.0,0.0003589,14]
[399913838,1766862652493,-151.0,0.0003589,7]
[399913839,1766862652503,-500.0,0.0003589,9]
[399913840,1766862652514,-500.0,0.0003589,9]
[399913841,1766862652523,-151.0,0.0003589,2]
[399913842,1766862652533,-151.0,0.0003589,31]
[399913843,1766862652543,-151.0,0.0003589,2]
[399913844,1766862652553,-151.0,0.0003589,31]
[399913845,1766862652563,-151.0,0.0003589,2]
[399913846,1766862652574,-400.0,0.0003589,9]
[399913847,1766862652583,-500.0,0.0003589,9]
[399913848,1766862652593,-400.0,0.0003589,9]
[399913849,1766862652603,-500.0,0.0003589,9]
[399913850,1766862652613,-400.0,0.0003589,9]
[399913851,1766862652623,-151.0,0.0003589,31]
[399913852,1766862652632,-539.09000515,0.0003589,9]
[399913853,1766862652641,-151.0,0.0003589,31]
[399913854,1766862652651,-400.0,0.0003589,9]
[399913855,1766862652661,-279.082884,0.0003589,31]
[399913856,1766862652671,-300.0,0.0003589,9]
[399913857,1766862652681,-400.0,0.0003589,9]
[399913858,1766862652691,-500.0,0.0003589,9]
[399913859,1766862652701,-400.0,0.0003589,9]
[399913860,1766862652711,-151.0,0.0003589,31]
[399913861,1766862652720,-151.0,0.0003589,31]
[399913862,1766862652730,-500.0,0.0003589,9]
[399913863,1766862652740,-151.0,0.0003589,31]
[399913864,1766862652750,-151.0,0.0003589,31]
[399913865,1766862652760,-151.0,0.0003589,30]
[399913866,1766862652769,-400.0,0.0003589,9]
[399913867,1766862652779,-400.0,0.0003589,9]
[399913868,1766862652789,-500.0,0.0003589,9]
[399913869,1766862652799,-500.0,0.0003589,9]
[399913870,1766862652810,-400.0,0.0003589,9]
[399913871,1766862652819,-500.0,0.0003589,9]
[399913872,1766862652829,-151.65391363,0.0003589,9]
[399913873,1766862652840,-516.96,0.0003589,9]
[399913874,1766862652849,-500.0,0.0003589,9]
[399913875,1766862652860,-400.0,0.0003589,9]
[399913876,1766862652870,-400.0,0.0003589,9]
[399913877,1766862652880,-500.0,0.0003589,9]
[399913878,1766862652890,-300.0,0.0003589,9]
[399913879,1766862652899,-547.28395637,0.0003589,9]
[399913880,1766862652909,-400.0,0.0003589,9]
[399913881,1766862652920,-561.41,0.0003589,9]
[399913882,1766862652930,-500.0,0.0003589,9]
[399913883,1766862652940,-400.0,0.0003589,9]
[399913884,1766862652950,-500.0,0.0003589,9]
[399913885,1766862652960,-272.2973042,0.0003589,9]
[399913886,1766862652970,-400.0,0.0003589,9]
[399913887,1766862652980,-400.0,0.0003589,9]
[399913888,1766862652991,-500.0,0.0003589,9]
[399913889,1766862653001,-499.646756,0.0003589,31]
[399913890,1766862653011,-499.646756,0.0003589,31]
[399913891,1766862653021,-499.646756,0.0003589,31]
[399913892,1766862653031,-499.646756,0.0003589,31]
[399913893,1766862653041,-400.0,0.0003589,9]
[399913894,1766862653051,-400.0,0.0003589,9]
[399913895,1766862653061,-400.0,0.0003589,9]
[399913896,1766862653071,-500.0,0.0003589,9]
[399913897,1766862653081,-500.0,0.0003589,9]
[399913898,1766862653091,-500.0,0.0003589,9]
[399913899,1766862653101,-400.0,0.0003589,9]
[399913900,1766862653111,-400.0,0.0003589,9]
[399913901,1766862653120,-422.43383634,0.0003589,9]
[399913902,1766862653131,-600.0,0.0003589,9]
[399913903,1766862653141,-416.94987852,0.0003589,9]
[399913904,1766862653152,-400.0,0.0003589,9]
[399913905,1766862653162,-500.0,0.0003589,9]
[399913906,1766862653172,-500.0,0.0003589,9]
[399913907,1766862653183,-303.23252351,0.0003589,9]
[399913908,1766862653193,-535.06494421,0.0003589,9]
[399913909,1766862653203,-400.0,0.0003589,9]
[399913910,1766862653214,-500.0,0.0003589,9]
[399913911,1766862653225,-500.0,0.0003589,9]
[399913912,1766862653235,-500.0,0.0003589,9]
[399913913,1766862653245,-200.0,0.0003589,9]
[399913914,1766862653256,-400.0,0.0003589,9]
[399913915,1766862653267,-500.0,0.0003589,9]
[399913916,1766862653277,-500.0,0.0003589,9]
[399913917,1766862653286,-642.220405,0.0003589,31]
[399913918,1766862653296,-200.16,0.0003589,9]
[399913919,1766862653305,-642.220405,0.0003589,31]
[399913920,1766862653315,-151.0,0.0003589,31]
[399913921,1766862653324,-500.0,0.0003589,9]
[399913922,1766862653335,-287.332064,0.0003589,31]
[399913923,1766862653345,-642.220405,0.0003589,31]
[399913924,1766862653355,-500.0,0.0003589,9]
[399913925,1766862653365,-642.220405,0.0003589,31]
[399913926,1766862653375,-2221.595333,0.0003589,31]
[399913927,1766862653384,-2221.595333,0.0003589,31]
[399913928,1766862653394,-2293.6,0.000359,14]
[399913929,1766862653404,-326.51749238,0.000359,2]
[399913930,1766862653415,-50000.0,0.00036,36]
[399913931,1766862653424,-50000.0,0.00036,26]
[399913932,1766862653435,-50000.0,0.00036,46]
[399913933,1766862653445,-74920.30534861,0.00036,2]
[399913934,1766862653455,-136543.71648046,0.00036,2]
[399913935,1766862653779,-303317.45380859,0.00016334,2]
[399913936,1766862653792,-76191.90139141,0.00016334,2]
[399913937,1766862653803,-151.0,0.00016408,2]
[399913938,1766862653813,-334.854706,0.0002,2]
[399913939,1766862653824,-838.8591648,0.00020043,2]
[399913940,1766862653835,-2221.595333,0.00035,31]
[399913941,1766862653846,-2221.595333,0.00035,31]
[399913942,1766862653856,-2221.595333,0.00035,31]
[399913943,1766862653866,-2221.595333,0.00035,31]
[399913944,1766862653876,-2221.595333,0.0003589,31]
[399913945,1766862654125,-2221.595333,0.0003589,31]
[399913946,1766862654148,-96768.94739746,0.00036,2]
[399913947,1766862654159,-151.0,0.00036,31]
[399913948,1766862654168,-151.0,0.00036,31]
[399913949,1766862654178,-151.0,0.00036,31]
[399913950,1766862654188,-151.0,0.00036,31]
[399913951,1766862654197,-151.0,0.00036,31]
[399913952,1766862654207,-151.0,0.00036,31]
[399913953,1766862654217,-151.0,0.00036,7]
[399913954,1766862654227,-151.0,0.00036,7]
[399913955,1766862654242,-151.0,0.00036,14]
[399913956,1766862654257,-151.0,0.00036,7]
[399913957,1766862654267,-151.0,0.00036,14]
[399913958,1766862654278,-230.31456,0.00036,7]
[399913959,1766862654288,-151.0,0.00036,2]
[399913960,1766862654299,-151.0,0.00036,31]
[399913961,1766862654309,-151.0,0.00036,2]
[399913962,1766862654323,-151.0,0.00036,2]
[399913963,1766862654333,-151.0,0.00036,31]
[399913964,1766862654343,-151.0,0.00036,31]
[399913965,1766862654353,-151.0,0.00036,31]
[399913966,1766862654363,-151.0,0.00036,31]
[399913967,1766862654373,-151.0,0.00036,31]
[399913968,1766862654383,-158.919688,0.00036,31]
[399913969,1766862654393,-151.0,0.00036,30]
[399913970,1766862654403,-499.646756,0.00036,31]
[399913971,1766862654413,-499.646756,0.00036,31]
[399913972,1766862654423,-499.646756,0.00036,31]
[399913973,1766862654433,-499.646756,0.00036,31]
[399913974,1766862654443,-642.220405,0.00036,31]
[399913975,1766862654454,-642.220405,0.00036,31]
[399913976,1766862654463,-151.0,0.00036,31]
[399913977,1766862654474,-642.220405,0.00036,31]
[399913978,1766862654484,-642.220405,0.00036,31]
[399913979,1766862654494,-2221.595333,0.00036,31]
[399913980,1766862654505,-2221.595333,0.00036,31]
[399913981,1766862654516,-2221.595333,0.00036,31]
[399913982,1766862654527,-2221.595333,0.00036,31]
[399913983,1766862654536,-198.25056264,0.00036112,30]
[399913984,1766862654547,-1000.0,0.00036164,2]
[399913985,1766862654557,-500.0,0.00036164,9]
[399913986,1766862654567,-500.0,0.00036164,9]
[399913987,1766862654578,-400.0,0.00036164,9]
[399913988,1766862654588,-539.37349588,0.00036164,9]
[399913989,1766862654598,-257.49938775,0.00036164,9]
[399913990,1766862654613,-400.0,0.00036164,9]
[399913991,1766862654623,-351.80658245,0.00036164,9]
[399913992,1766862654633,-300.0,0.00036164,9]
[399913993,1766862654644,-400.0,0.00036164,9]
[399913994,1766862654655,-500.0,0.00036164,9]
[399913995,1766862654666,-500.0,0.00036164,9]
[399913996,1766862654677,-602.04707612,0.00036164,9]
[399913997,1766862654687,-378.72127749,0.00036164,9]